[Event "GER-ch Youth-U10 2022"]
[Site "Willingen"]
[Date "2022.06.11"]
[Round "11.8"]
[White "Li, Yunqi"]
[Black "Zimmer, Tim"]
[Result "1/2-1/2"]
[ECO "C54"]
[WhiteElo "1312"]
[BlackElo "1164"]
[Annotator "NA RC COMBH"]
[PlyCount "151"]
[EventDate "2022.06.05"]
[EventType "swiss"]
[EventRounds "11"]
[EventCountry "GER"]
[SourceTitle "playchess.com"]
[Source "ChessBase"]
[SourceQuality "1"]
[TimeControl "40/4500+30:900+30"]

1. e4 {[%emt 0:00:01]} e5 {[%emt 0:00:04]} 2. Nf3 {[%emt 0:00:05]} Nc6 {[%emt 0:00:26]} 3. Bc4 {[%emt 0:00:10]} Bc5 {[%emt 0:00:07]} 4. c3 {[%emt 0:00:04]} Nf6 {[%emt 0:00:05]} 5. d3 {[%emt 0:00:12]} a6 {[%emt 0:00:41]} 6. Bb3 {[%emt 0:00:08]} Ba7 {[%emt 0:00:20]} 7. Nbd2 {[%emt 0:00:11]} d5 {[%emt 0:00:49]} 8. h3 {[%emt 0:01:13]} O-O {[%emt 0:03:15]} 9. Qe2 {[%emt 0:00:08]} Qd6 {[%emt 0:04:16]} 10. Nf1 {[%emt 0:01:56]} Ne7 {[%emt 0:01:47]} 11. Ng3 {[%emt 0:01:23]} Ng6 {[%emt 0:01:17]} 12. O-O {[%emt 0:00:15]} h6 {[%emt 0:00:27]} 13. Rd1 {[%emt 0:04:05]} Re8 {[%emt 0:02:16]} 14. Bd2 {[%emt 0:06:51]} Bd7 {[%emt 0:02:01]} 15. Re1 {[%emt 0:03:17]} dxe4 {[%emt 0:05:04]} 16. dxe4 {[%emt 0:01:05]} Be6 {[%emt 0:02:03]} 17. Rad1 {[%emt 0:06:27]} Qc6 {[%emt 0:03:56]} 18. Bxe6 {[%emt 0:07:32]} fxe6 {[%emt 0:01:44]} 19. Be3 {[%emt 0:15:38]} Bxe3 {[%emt 0:01:32]} 20. Qxe3 {[%emt 0:00:42]} Rad8 {[%emt 0:00:54]} 21. Rd2 {[%emt 0:01:24]} Rd6 {[%emt 0:05:07]} 22. Red1 {[%emt 0:01:59]} Red8 {[%emt 0:01:33]} 23. Rxd6 {[%emt 0:01:13]} Rxd6 {[%emt 0:00:13]} 24. Rxd6 {[%emt 0:00:27]} cxd6 {[%emt 0:02:26]} 25. Kf1 {[%emt 0:01:51]} Qc4+ {[%emt 0:00:58]} 26. Kg1 {[%emt 0:01:55]} Qb5 {[%emt 0:04:21]} 27. b3 {[%emt 0:03:31]} Nf4 {[%emt 0:02:24]} 28. Nd2 {[%emt 0:03:14]} Qc6 {[%emt 0:03:26]} 29. f3 {[%emt 0:01:57]} b5 {[%emt 0:01:39]} 30. c4 {[%emt 0:01:35]} g5 {[%emt 0:04:29]} 31. Kf2 {[%emt 0:02:04]} Nd7 {[%emt 0:02:19]} 32. cxb5 {[%emt 0:00:44]} axb5 {[%emt 0:03:21]} 33. Ne2 {[%emt 0:02:22]} Nc5 {[%emt 0:01:25]} 34. Nxf4 {[%emt 0:01:36]} gxf4 {[%emt 0:00:08]} 35. Qc3 {[%emt 0:00:39]} Qb6 {[%emt 0:01:10]} 36. Ke2 {[%emt 0:00:54]} Qa6 {[%emt 0:04:04]} 37. b4 {[%emt 0:01:11]} Na4 {[%emt 0:03:26]} 38. Qc7 {[%emt 0:01:36]} Qb6 {[%emt 0:00:37]} 39. Qxb6 {[%emt 0:00:32]} Nxb6 {[%emt 0:00:06]} 40. Nb1 {[%emt 0:00:51]} Nc8 {[%emt 0:02:09]} 41. Nc3 {[%emt 0:15:48]} Na7 {[%emt 0:15:26]} 42. a4 {[%emt 0:00:56]} bxa4 {[%emt 0:00:43]} 43. Nxa4 {[%emt 0:00:06]} Kf7 {[%emt 0:01:11]} 44. Kd3 {[%emt 0:00:14]} d5 {[%emt 0:02:29]} 45. Nc5 {[%emt 0:00:43]} Ke7 {[%emt 0:01:11]} 46. Kc3 {[%emt 0:03:26]} Nb5+ {[%emt 0:05:20]} 47. Kb3 {[%emt 0:00:48]} Kd6 {[%emt 0:01:15]} 48. Ka4 {[%emt 0:02:09]} Nd4 {[%emt 0:02:41]} 49. Ka5 {[%emt 0:01:14]} Kc6 {[%emt 0:01:53]} 50. Nd3 {[%emt 0:00:20]} dxe4 {[%emt 0:02:31]} 51. fxe4 {[%emt 0:00:23]} Nb3+ {[%emt 0:01:05]} 52. Ka4 {[%emt 0:00:21]} Nd2 {[%emt 0:00:09]} 53. Nxe5+ {[%emt 0:01:09]} Kd6 {[%emt 0:00:28]} 54. Nf7+ {[%emt 0:00:42]} Kc6 {[%emt 0:00:20]} 55. b5+ {[%emt 0:00:36]} Kb6 {[%emt 0:01:15]} 56. e5 {[%emt 0:02:39]} f3 {[%emt 0:00:00]} 57. gxf3 {[%emt 0:00:00]} Nxf3 {[%emt 0:00:00]} 58. Nxh6 {[%emt 0:00:00]} Nxe5 {[%emt 0:00:00]} 59. Ng4 {[%emt 0:00:00]} Nf3 {[%emt 0:00:00]} 60. Nf6 {[%emt 0:00:00]} Nd4 {[%emt 0:00:00]} 61. Nd7+ {[%emt 0:00:00]} Kc7 {[%emt 0:00:00]} 62. Ne5 {[%emt 0:00:00]} Kd6 {[%emt 0:00:00]} 63. Nf7+ {[%emt 0:00:00]} Ke7 {[%emt 0:00:00]} 64. Ng5 {[%emt 0:00:00]} Kf6 {[%emt 0:00:00]} 65. Ne4+ {[%emt 0:00:00]} Ke5 {[%emt 0:00:00]} 66. Nf2 {[%emt 0:00:00]} Kf4 {[%emt 0:00:24]} 67. b6 {[%emt 0:00:00]} e5 {[%emt 0:00:42]} 68. b7 {[%emt 0:00:23]} Nc6 {[%emt 0:00:06]} 69. Kb5 {[%emt 0:00:17]} Nb8 {[%emt 0:00:09]} 70. h4 {[%emt 0:03:09]} e4 {[%emt 0:00:56]} 71. h5 {[%emt 0:03:21]} e3 {[%emt 0:01:04]} 72. Nd3+ {[%emt 0:01:24]} Kg5 {[%emt 0:02:02]} 73. Kc5 {[%emt 0:00:38]} Kxh5 {[%emt 0:00:43]} 74. Kd4 {[%emt 0:00:07]} e2 {[%emt 0:00:20]} 75. Nf4+ {[%emt 0:00:05]} Kg5 {[%emt 0:00:10]} 76. Nxe2 {[%emt 0:00:20]} 1/2-1/2

[Event "GER-ch Youth-U10 2022"]
[Site "Willingen"]
[Date "2022.06.11"]
[Round "11.9"]
[White "Fadeev, Justin Michael"]
[Black "Lanert, Theodor"]
[Result "0-1"]
[ECO "B40"]
[WhiteElo "1320"]
[BlackElo "1306"]
[Annotator "NA RC COMBH"]
[PlyCount "68"]
[EventDate "2022.06.05"]
[EventType "swiss"]
[EventRounds "11"]
[EventCountry "GER"]
[SourceTitle "playchess.com"]
[Source "ChessBase"]
[SourceQuality "1"]
[TimeControl "40/4500+30:900+30"]

1. e4 {[%emt 0:00:01]} c5 {[%emt 0:00:04]} 2. Nf3 {[%emt 0:00:11]} Nc6 {[%emt 0:00:40]} 3. d4 {[%emt 0:00:00]} cxd4 {[%emt 0:00:08]} 4. Nxd4 {[%emt 0:00:04]} Nf6 {[%emt 0:00:21]} 5. Nc3 {[%emt 0:00:11]} e6 {[%emt 0:03:28]} 6. Nxc6 {[%emt 0:05:17]} bxc6 {[%emt 0:00:30]} 7. Bd3 {[%emt 0:00:43]} d5 {[%emt 0:00:17]} 8. O-O {[%emt 0:00:33]} Be7 {[%emt 0:01:01]} 9. Re1 {[%emt 0:01:13]} O-O {[%emt 0:00:51]} 10. e5 {[%emt 0:00:19]} Nd7 {[%emt 0:00:08]} 11. Qg4 {[%emt 0:00:06]} Re8 {[%emt 0:00:49]} 12. Bh6 {[%emt 0:07:58]} Bf8 {[%emt 0:02:47]} 13. Re3 {[%emt 0:02:20]} f5 {[%emt 0:04:14]} 14. exf6 {[%emt 0:00:51]} Nxf6 {[%emt 0:00:19]} 15. Qg5 {[%emt 0:00:09]} Kh8 {[%emt 0:01:23]} 16. Rf3 {[%emt 0:01:31]} e5 {[%emt 0:01:20]} 17. Qh4 {[%emt 0:05:42]} e4 {[%emt 0:02:51]} 18. Rxf6 {[%emt 0:02:54]} Qxf6 {[%emt 0:00:54]} 19. Bg5 {[%emt 0:00:03]} Qe6 {[%emt 0:02:26]} 20. Re1 {[%emt 0:03:42]} Qg4 {[%emt 0:02:03]} 21. Be2 {[%emt 0:04:24]} Qxh4 {[%emt 0:00:57]} 22. Bxh4 {[%emt 0:00:02]} Rb8 {[%emt 0:00:52]} 23. Na4 {[%emt 0:03:38]} Bd7 {[%emt 0:01:01]} 24. b3 {[%emt 0:02:36]} e3 {[%emt 0:01:51]} 25. fxe3 {[%emt 0:00:44]} Rxe3 {[%emt 0:01:21]} 26. Bf2 {[%emt 0:00:07]} Re4 {[%emt 0:01:23]} 27. Bxa7 {[%emt 0:00:50]} Rbe8 {[%emt 0:01:08]} 28. Kf1 {[%emt 0:01:02]} Bb4 {[%emt 0:02:48]} 29. c3 {[%emt 0:00:17]} Bd6 {[%emt 0:00:39]} 30. Bf2 {[%emt 0:00:40]} d4 {[%emt 0:02:54]} 31. Bxd4 {[%emt 0:00:53]} Bg4 {[%emt 0:00:51]} 32. Bf2 {[%emt 0:02:43]} Rxe2 {[%emt 0:01:01]} 33. Rxe2 {[%emt 0:00:29]} Bxe2+ {[%emt 0:01:06]} 34. Kg1 {[%emt 0:00:03]} Rf8 {[%emt 0:02:16]} 0-1

[Event "GER-ch Youth-U10 2022"]
[Site "Willingen"]
[Date "2022.06.11"]
[Round "11.10"]
[White "Belin, Anton"]
[Black "Rau, Eduard"]
[Result "1/2-1/2"]
[ECO "C55"]
[WhiteElo "1213"]
[BlackElo "1406"]
[Annotator "NA RC COMBH"]
[PlyCount "120"]
[EventDate "2022.06.05"]
[EventType "swiss"]
[EventRounds "11"]
[EventCountry "GER"]
[SourceTitle "playchess.com"]
[Source "ChessBase"]
[SourceQuality "1"]
[TimeControl "40/4500+30:900+30"]

1. e4 {[%emt 0:00:02]} e5 {[%emt 0:00:06]} 2. Nf3 {[%emt 0:00:03]} Nc6 {[%emt 0:00:05]} 3. Bc4 {[%emt 0:00:07]} Nf6 {[%emt 0:00:00]} 4. Nc3 {[%emt 0:00:04]} Nxe4 {[%emt 0:00:04]} 5. O-O {[%emt 0:00:05]} Nxc3 {[%emt 0:00:14]} 6. dxc3 {[%emt 0:00:06]} Bc5 {[%emt 0:00:11]} 7. Ng5 {[%emt 0:00:12]} Qf6 {[%emt 0:02:42]} 8. Bxf7+ {[%emt 0:00:46]} Kd8 {[%emt 0:00:49]} 9. Qd5 {[%emt 0:00:24]} Bd6 {[%emt 0:01:25]} 10. f4 {[%emt 0:00:35]} Ne7 {[%emt 0:00:45]} 11. Qd3 {[%emt 0:00:34]} h6 {[%emt 0:00:56]} 12. Ne4 {[%emt 0:01:54]} Qxf7 {[%emt 0:03:25]} 13. fxe5 {[%emt 0:00:08]} Bc5+ {[%emt 0:02:06]} 14. Nxc5 {[%emt 0:00:20]} Qd5 {[%emt 0:00:25]} 15. Qxd5 {[%emt 0:02:10]} Nxd5 {[%emt 0:00:05]} 16. Rd1 {[%emt 0:00:06]} c6 {[%emt 0:00:33]} 17. c4 {[%emt 0:01:08]} Nc7 {[%emt 0:00:12]} 18. e6 {[%emt 0:00:07]} d6 {[%emt 0:00:43]} 19. Rxd6+ {[%emt 0:00:31]} Ke7 {[%emt 0:00:04]} 20. Bf4 {[%emt 0:00:33]} b6 {[%emt 0:00:29]} 21. Rxc6 {[%emt 0:00:29]} Ne8 {[%emt 0:00:36]} 22. Nd3 {[%emt 0:01:10]} Bb7 {[%emt 0:00:23]} 23. Bd6+ {[%emt 0:01:18]} Nxd6 {[%emt 0:02:19]} 24. Rc7+ {[%emt 0:00:07]} Kxe6 {[%emt 0:07:19]} 25. c5 {[%emt 0:00:09]} Bxg2 {[%emt 0:01:31]} 26. Re1+ {[%emt 0:01:35]} Be4 {[%emt 0:01:10]} 27. cxd6 {[%emt 0:00:13]} Kxd6 {[%emt 0:00:04]} 28. Rxg7 {[%emt 0:00:16]} Bxd3 {[%emt 0:00:05]} 29. cxd3 {[%emt 0:00:08]} Rhg8 {[%emt 0:00:05]} 30. Rxg8 {[%emt 0:00:09]} Rxg8+ {[%emt 0:00:02]} 31. Kf2 {[%emt 0:00:10]} Rg7 {[%emt 0:00:18]} 32. Kf3 {[%emt 0:00:34]} Kd5 {[%emt 0:00:04]} 33. Re4 {[%emt 0:00:36]} b5 {[%emt 0:00:42]} 34. Rh4 {[%emt 0:00:09]} Rf7+ {[%emt 0:00:17]} 35. Kg3 {[%emt 0:00:31]} Rf6 {[%emt 0:00:21]} 36. a4 {[%emt 0:00:14]} Rg6+ {[%emt 0:01:52]} 37. Rg4 {[%emt 0:00:41]} Rxg4+ {[%emt 0:01:03]} 38. Kxg4 {[%emt 0:00:08]} bxa4 {[%emt 0:00:04]} 39. Kh5 {[%emt 0:00:05]} Kd4 {[%emt 0:00:03]} 40. Kxh6 {[%emt 0:00:06]} Kxd3 {[%emt 0:00:13]} 41. Kg5 {[%emt 0:15:06]} Kc2 {[%emt 0:15:04]} 42. h4 {[%emt 0:00:03]} Kxb2 {[%emt 0:00:03]} 43. h5 {[%emt 0:00:04]} a3 {[%emt 0:00:04]} 44. h6 {[%emt 0:00:05]} a2 {[%emt 0:00:03]} 45. h7 {[%emt 0:00:05]} a1=Q {[%emt 0:00:21]} 46. h8=Q+ {[%emt 0:00:12]} Kb1 {[%emt 0:01:15]} 47. Qh1+ {[%emt 0:00:22]} Ka2 {[%emt 0:00:38]} 48. Qd5+ {[%emt 0:00:10]} Ka3 {[%emt 0:00:12]} 49. Qa5+ {[%emt 0:00:14]} Kb2 {[%emt 0:00:04]} 50. Qb4+ {[%emt 0:00:05]} Kc2 {[%emt 0:00:10]} 51. Qe4+ {[%emt 0:00:10]} Kb3 {[%emt 0:00:08]} 52. Qb7+ {[%emt 0:00:08]} Kc4 {[%emt 0:00:08]} 53. Qf7+ {[%emt 0:00:22]} Kb5 {[%emt 0:00:10]} 54. Qb7+ {[%emt 0:00:06]} Kc5 {[%emt 0:00:08]} 55. Qc7+ {[%emt 0:00:22]} Kd5 {[%emt 0:00:09]} 56. Qd7+ {[%emt 0:00:06]} Ke4 {[%emt 0:00:08]} 57. Qh7+ {[%emt 0:00:16]} Kd5 {[%emt 0:00:43]} 58. Qd7+ {[%emt 0:00:18]} Kc5 {[%emt 0:00:18]} 59. Qc7+ {[%emt 0:00:06]} Kb5 {[%emt 0:00:22]} 60. Qb7+ {[%emt 0:00:06]} Kc5 {[%emt 0:00:45]} 1/2-1/2

[Event "GER-ch Youth-U10 2022"]
[Site "Willingen"]
[Date "2022.06.11"]
[Round "11.11"]
[White "Fischer, Quirin"]
[Black "Vu, Khoi Nguyen"]
[Result "0-1"]
[ECO "C54"]
[WhiteElo "1195"]
[BlackElo "1627"]
[Annotator "NA RC COMBH"]
[PlyCount "114"]
[EventDate "2022.06.05"]
[EventType "swiss"]
[EventRounds "11"]
[EventCountry "GER"]
[SourceTitle "playchess.com"]
[Source "ChessBase"]
[SourceQuality "1"]
[TimeControl "40/4500+30:900+30"]

1. e4 {[%emt 0:00:02]} e5 {[%emt 0:00:06]} 2. Nf3 {[%emt 0:00:04]} Nc6 {[%emt 0:00:04]} 3. Bc4 {[%emt 0:00:06]} Bc5 {[%emt 0:00:14]} 4. c3 {[%emt 0:00:10]} Nf6 {[%emt 0:00:14]} 5. d4 {[%emt 0:00:06]} exd4 {[%emt 0:00:07]} 6. cxd4 {[%emt 0:00:05]} Bb4+ {[%emt 0:00:13]} 7. Nc3 {[%emt 0:00:05]} Nxe4 {[%emt 0:00:33]} 8. O-O {[%emt 0:00:07]} Bxc3 {[%emt 0:00:19]} 9. d5 {[%emt 0:00:12]} Bf6 {[%emt 0:00:38]} 10. dxc6 {[%emt 0:00:20]} bxc6 {[%emt 0:00:37]} 11. Qa4 {[%emt 0:00:39]} O-O {[%emt 0:01:11]} 12. Bxf7+ {[%emt 0:00:32]} Rxf7 {[%emt 0:00:07]} 13. Qxe4 {[%emt 0:00:04]} d5 {[%emt 0:00:25]} 14. Qc2 {[%emt 0:00:13]} Bd7 {[%emt 0:03:21]} 15. Re1 {[%emt 0:00:50]} Re7 {[%emt 0:01:33]} 16. Bf4 {[%emt 0:00:11]} Rb8 {[%emt 0:00:50]} 17. Be5 {[%emt 0:00:35]} Bxe5 {[%emt 0:00:39]} 18. Rxe5 {[%emt 0:00:22]} Rxe5 {[%emt 0:00:27]} 19. Nxe5 {[%emt 0:00:05]} Qe8 {[%emt 0:01:25]} 20. Re1 {[%emt 0:00:16]} Qe7 {[%emt 0:00:31]} 21. Re3 {[%emt 0:00:16]} Rb6 {[%emt 0:06:22]} 22. Nc4 {[%emt 0:02:12]} Qc5 {[%emt 0:01:12]} 23. Na3 {[%emt 0:01:32]} Qxc2 {[%emt 0:00:11]} 24. Nxc2 {[%emt 0:00:04]} Rxb2 {[%emt 0:00:14]} 25. Ne1 {[%emt 0:00:26]} Rxa2 {[%emt 0:00:12]} 26. Re7 {[%emt 0:00:07]} Ra1 {[%emt 0:00:06]} 27. Kf1 {[%emt 0:00:06]} Bf5 {[%emt 0:00:26]} 28. Ke2 {[%emt 0:00:11]} Ra2+ {[%emt 0:01:02]} 29. Kd1 {[%emt 0:00:20]} Rxf2 {[%emt 0:00:23]} 30. Rxc7 {[%emt 0:00:09]} Bg4+ {[%emt 0:00:20]} 31. Kc1 {[%emt 0:00:14]} Re2 {[%emt 0:00:16]} 32. Nc2 {[%emt 0:00:24]} Rxg2 {[%emt 0:00:06]} 33. Rxc6 {[%emt 0:00:26]} Rxh2 {[%emt 0:00:08]} 34. Ne3 {[%emt 0:00:16]} Bf3 {[%emt 0:00:30]} 35. Nf5 {[%emt 0:00:06]} Be4 {[%emt 0:00:19]} 36. Rc8+ {[%emt 0:00:50]} Kf7 {[%emt 0:00:10]} 37. Nd6+ {[%emt 0:00:08]} Ke7 {[%emt 0:00:07]} 38. Nxe4 {[%emt 0:00:07]} dxe4 {[%emt 0:00:05]} 39. Rc7+ {[%emt 0:00:09]} Kf6 {[%emt 0:00:13]} 40. Rxa7 {[%emt 0:00:02]} e3 {[%emt 0:00:49]} 41. Kd1 {[%emt 0:15:03]} e2+ {[%emt 0:15:17]} 42. Ke1 {[%emt 0:00:05]} h5 {[%emt 0:00:22]} 43. Ra6+ {[%emt 0:00:05]} Kg5 {[%emt 0:00:07]} 44. Ra5+ {[%emt 0:00:02]} Kh6 {[%emt 0:00:09]} 45. Re5 {[%emt 0:00:09]} h4 {[%emt 0:00:08]} 46. Rxe2 {[%emt 0:00:11]} Rxe2+ {[%emt 0:00:09]} 47. Kxe2 {[%emt 0:00:02]} g5 {[%emt 0:00:14]} 48. Kf2 {[%emt 0:00:03]} g4 {[%emt 0:00:07]} 49. Kg2 {[%emt 0:00:04]} Kg5 {[%emt 0:00:05]} 50. Kf2 {[%emt 0:00:09]} Kf4 {[%emt 0:00:03]} 51. Kg2 {[%emt 0:00:05]} h3+ {[%emt 0:00:15]} 52. Kh2 {[%emt 0:00:04]} Kf3 {[%emt 0:00:06]} 53. Kh1 {[%emt 0:00:06]} Kf2 {[%emt 0:00:08]} 54. Kh2 {[%emt 0:00:12]} g3+ {[%emt 0:00:04]} 55. Kxh3 {[%emt 0:00:15]} g2 {[%emt 0:00:06]} 56. Kh2 {[%emt 0:00:07]} g1=Q+ {[%emt 0:00:07]} 57. Kh3 {[%emt 0:00:03]} Qg3# {[%emt 0:00:06]} 0-1

[Event "GER-ch Youth-U10 2022"]
[Site "Willingen"]
[Date "2022.06.11"]
[Round "11.12"]
[White "Lee, Ho In"]
[Black "Rudolph, Simon"]
[Result "1-0"]
[ECO "B04"]
[WhiteElo "1396"]
[BlackElo "1361"]
[Annotator "NA RC COMBH"]
[PlyCount "73"]
[EventDate "2022.06.05"]
[EventType "swiss"]
[EventRounds "11"]
[EventCountry "GER"]
[SourceTitle "playchess.com"]
[Source "ChessBase"]
[SourceQuality "1"]
[TimeControl "40/4500+30:900+30"]

1. e4 {[%emt 0:00:03]} Nf6 {[%emt 0:00:04]} 2. e5 {[%emt 0:00:11]} Nd5 {[%emt 0:00:04]} 3. d4 {[%emt 0:00:16]} d6 {[%emt 0:00:04]} 4. Nf3 {[%emt 0:00:27]} g6 {[%emt 0:00:25]} 5. c4 {[%emt 0:00:22]} Nb6 {[%emt 0:00:05]} 6. Be3 {[%emt 0:00:40]} Bg7 {[%emt 0:00:22]} 7. exd6 {[%emt 0:00:41]} cxd6 {[%emt 0:00:35]} 8. h3 {[%emt 0:00:42]} O-O {[%emt 0:00:31]} 9. Nc3 {[%emt 0:01:48]} Nc6 {[%emt 0:00:58]} 10. Be2 {[%emt 0:01:14]} Bf5 {[%emt 0:01:48]} 11. O-O {[%emt 0:01:19]} Nb4 {[%emt 0:01:00]} 12. Rc1 {[%emt 0:04:00]} e5 {[%emt 0:01:17]} 13. a3 {[%emt 0:04:44]} Na6 {[%emt 0:00:58]} 14. d5 {[%emt 0:06:46]} Qc8 {[%emt 0:05:33]} 15. b3 {[%emt 0:02:40]} Nc7 {[%emt 0:03:04]} 16. Bd3 {[%emt 0:02:27]} e4 {[%emt 0:01:24]} 17. Nxe4 {[%emt 0:05:12]} Bxe4 {[%emt 0:00:09]} 18. Bxe4 {[%emt 0:00:44]} Bb2 {[%emt 0:00:27]} 19. Rc2 {[%emt 0:04:01]} Bxa3 {[%emt 0:00:16]} 20. Bd4 {[%emt 0:01:57]} Na6 {[%emt 0:01:25]} 21. Qd2 {[%emt 0:04:37]} Nb4 {[%emt 0:00:47]} 22. Qh6 {[%emt 0:00:20]} f6 {[%emt 0:01:28]} 23. Re2 {[%emt 0:03:51]} Qd7 {[%emt 0:00:59]} 24. Ra1 {[%emt 0:04:10]} Rae8 {[%emt 0:01:09]} 25. Ree1 {[%emt 0:03:00]} f5 {[%emt 0:01:53]} 26. Bb1 {[%emt 0:00:40]} Rxe1+ {[%emt 0:00:50]} 27. Nxe1 {[%emt 0:00:13]} Re8 {[%emt 0:01:19]} 28. Nf3 {[%emt 0:00:10]} Bc1 {[%emt 0:04:07]} 29. Qxc1 {[%emt 0:00:28]} Re2 {[%emt 0:02:21]} 30. Qh6 {[%emt 0:02:53]} Nc2 {[%emt 0:02:21]} 31. Bxc2 {[%emt 0:00:32]} Rxc2 {[%emt 0:00:12]} 32. Bxb6 {[%emt 0:00:13]} Qe8 {[%emt 0:02:14]} 33. Rxa7 {[%emt 0:01:03]} Re2 {[%emt 0:00:53]} 34. Rxb7 {[%emt 0:00:28]} Re1+ {[%emt 0:00:27]} 35. Nxe1 {[%emt 0:00:08]} Qxe1+ {[%emt 0:00:06]} 36. Kh2 {[%emt 0:00:09]} Qe5+ {[%emt 0:00:25]} 37. f4 {[%emt 0:00:16]} 1-0

[Event "GER-ch Youth-U10 2022"]
[Site "Willingen"]
[Date "2022.06.11"]
[Round "11.13"]
[White "Wang, Kaiwen"]
[Black "Moskalenko, Michael"]
[Result "1-0"]
[ECO "B13"]
[WhiteElo "1151"]
[BlackElo "1266"]
[Annotator "NA RC COMBH"]
[PlyCount "99"]
[EventDate "2022.06.05"]
[EventType "swiss"]
[EventRounds "11"]
[EventCountry "GER"]
[SourceTitle "playchess.com"]
[Source "ChessBase"]
[SourceQuality "1"]
[TimeControl "40/4500+30:900+30"]

1. e4 {[%emt 0:00:02]} c6 {[%emt 0:00:04]} 2. d4 {[%emt 0:00:09]} d5 {[%emt 0:00:05]} 3. exd5 {[%emt 0:00:08]} cxd5 {[%emt 0:00:05]} 4. c4 {[%emt 0:00:07]} Nf6 {[%emt 0:00:04]} 5. Nc3 {[%emt 0:00:07]} Nc6 {[%emt 0:00:04]} 6. Nf3 {[%emt 0:00:09]} Bg4 {[%emt 0:00:05]} 7. Be3 {[%emt 0:00:08]} e6 {[%emt 0:00:18]} 8. c5 {[%emt 0:00:36]} Be7 {[%emt 0:00:35]} 9. Bb5 {[%emt 0:00:20]} O-O {[%emt 0:00:36]} 10. O-O {[%emt 0:00:24]} Qc7 {[%emt 0:12:54]} 11. h3 {[%emt 0:01:49]} Bh5 {[%emt 0:00:17]} 12. Be2 {[%emt 0:01:50]} b6 {[%emt 0:02:31]} 13. cxb6 {[%emt 0:03:29]} Qxb6 {[%emt 0:01:41]} 14. Ne5 {[%emt 0:02:51]} Bxe2 {[%emt 0:01:01]} 15. Qxe2 {[%emt 0:00:24]} Rfc8 {[%emt 0:09:49]} 16. Rac1 {[%emt 0:08:19]} Nxd4 {[%emt 0:07:53]} 17. Qd2 {[%emt 0:01:51]} Bc5 {[%emt 0:12:27]} 18. Na4 {[%emt 0:01:07]} Ne4 {[%emt 0:00:31]} 19. Qd3 {[%emt 0:03:37]} Qb4 {[%emt 0:04:02]} 20. Nxc5 {[%emt 0:01:47]} Nxc5 {[%emt 0:00:49]} 21. Qxd4 {[%emt 0:00:41]} Qxd4 {[%emt 0:02:12]} 22. Bxd4 {[%emt 0:00:06]} Ne4 {[%emt 0:01:49]} 23. Rxc8+ {[%emt 0:00:57]} Rxc8 {[%emt 0:01:19]} 24. Be3 {[%emt 0:00:41]} f6 {[%emt 0:05:30]} 25. Nd3 {[%emt 0:01:22]} e5 {[%emt 0:00:22]} 26. Bxa7 {[%emt 0:01:37]} Ra8 {[%emt 0:00:23]} 27. Bc5 {[%emt 0:00:09]} Rxa2 {[%emt 0:00:27]} 28. Ba3 {[%emt 0:00:13]} Nd2 {[%emt 0:00:20]} 29. Rd1 {[%emt 0:00:25]} Nb3 {[%emt 0:00:12]} 30. Nb4 {[%emt 0:00:09]} Ra1 {[%emt 0:00:04]} 31. Rxa1 {[%emt 0:00:07]} Nxa1 {[%emt 0:01:19]} 32. Nxd5 {[%emt 0:00:12]} Nb3 {[%emt 0:00:39]} 33. f3 {[%emt 0:00:40]} Kf7 {[%emt 0:00:18]} 34. Nc7 {[%emt 0:00:20]} Kg6 {[%emt 0:00:23]} 35. Ne6 {[%emt 0:00:21]} Kf7 {[%emt 0:00:31]} 36. Nc5 {[%emt 0:00:07]} Nd4 {[%emt 0:00:17]} 37. b4 {[%emt 0:00:17]} Kg6 {[%emt 0:01:10]} 38. Bb2 {[%emt 0:00:22]} Nb5 {[%emt 0:00:11]} 39. Ne4 {[%emt 0:00:32]} Kf5 {[%emt 0:00:18]} 40. Nc3 {[%emt 0:01:01]} Nd6 {[%emt 0:00:27]} 41. b5 {[%emt 0:17:11]} h5 {[%emt 0:15:20]} 42. Na4 {[%emt 0:01:02]} e4 {[%emt 0:00:40]} 43. fxe4+ {[%emt 0:00:50]} Kxe4 {[%emt 0:00:11]} 44. b6 {[%emt 0:00:27]} Kd5 {[%emt 0:01:11]} 45. Ba3 {[%emt 0:00:45]} Nb7 {[%emt 0:01:23]} 46. Nc5 {[%emt 0:00:14]} Kc6 {[%emt 0:00:33]} 47. Nxb7 {[%emt 0:00:08]} Kxb7 {[%emt 0:00:04]} 48. Bc5 {[%emt 0:00:13]} f5 {[%emt 0:00:14]} 49. h4 {[%emt 0:00:11]} g6 {[%emt 0:00:46]} 50. Kf2 {[%emt 0:00:35]} 1-0

[Event "GER-ch Youth-U10 2022"]
[Site "Willingen"]
[Date "2022.06.11"]
[Round "11.14"]
[White "Kutz, Paul Matti"]
[Black "Teng, David"]
[Result "1-0"]
[ECO "B22"]
[WhiteElo "1202"]
[BlackElo "1423"]
[Annotator "NA RC COMBH"]
[PlyCount "31"]
[EventDate "2022.06.05"]
[EventType "swiss"]
[EventRounds "11"]
[EventCountry "GER"]
[SourceTitle "playchess.com"]
[Source "ChessBase"]
[SourceQuality "1"]
[TimeControl "40/4500+30:900+30"]

1. e4 {[%emt 0:00:01]} c5 {[%emt 0:00:05]} 2. Nf3 {[%emt 0:00:18]} e6 {[%emt 0:00:07]} 3. c3 {[%emt 0:00:08]} Nf6 {[%emt 0:00:15]} 4. e5 {[%emt 0:00:09]} Nd5 {[%emt 0:00:08]} 5. d4 {[%emt 0:00:07]} cxd4 {[%emt 0:00:22]} 6. cxd4 {[%emt 0:00:08]} d6 {[%emt 0:00:48]} 7. Bc4 {[%emt 0:00:18]} Nb6 {[%emt 0:00:19]} 8. Bd3 {[%emt 0:00:27]} Nc6 {[%emt 0:00:36]} 9. O-O {[%emt 0:01:20]} Be7 {[%emt 0:00:32]} 10. Nc3 {[%emt 0:01:10]} O-O {[%emt 0:01:14]} 11. exd6 {[%emt 0:02:04]} Bxd6 {[%emt 0:01:27]} 12. Bxh7+ {[%emt 0:01:05]} Kxh7 {[%emt 0:01:57]} 13. Ng5+ {[%emt 0:00:07]} Kg6 {[%emt 0:02:04]} 14. Qg4 {[%emt 0:03:53]} e5 {[%emt 0:00:53]} 15. Ne6+ {[%emt 0:00:22]} Kh7 {[%emt 0:03:45]} 16. Qxg7# {[%emt 0:00:06]} 1-0

[Event "GER-ch Youth-U10 2022"]
[Site "Willingen"]
[Date "2022.06.11"]
[Round "11.15"]
[White "Hagn, Tobias"]
[Black "Rohatgi, Kushagra"]
[Result "1/2-1/2"]
[ECO "B13"]
[WhiteElo "1337"]
[BlackElo "1222"]
[Annotator "NA RC COMBH"]
[PlyCount "58"]
[EventDate "2022.06.05"]
[EventType "swiss"]
[EventRounds "11"]
[EventCountry "GER"]
[SourceTitle "playchess.com"]
[Source "ChessBase"]
[SourceQuality "1"]
[TimeControl "40/4500+30:900+30"]

1. e4 {[%emt 0:00:02]} c6 {[%emt 0:00:04]} 2. d4 {[%emt 0:00:10]} d5 {[%emt 0:00:09]} 3. exd5 {[%emt 0:00:10]} cxd5 {[%emt 0:00:10]} 4. Bd3 {[%emt 0:00:16]} Nc6 {[%emt 0:00:12]} 5. c3 {[%emt 0:00:28]} Nf6 {[%emt 0:00:19]} 6. Bf4 {[%emt 0:00:25]} Qb6 {[%emt 0:02:50]} 7. Qb3 {[%emt 0:01:56]} Qxb3 {[%emt 0:00:00]} 8. axb3 {[%emt 0:00:06]} Bg4 {[%emt 0:00:17]} 9. Nd2 {[%emt 0:01:27]} a6 {[%emt 0:02:04]} 10. Ngf3 {[%emt 0:03:26]} e6 {[%emt 0:02:06]} 11. O-O {[%emt 0:02:04]} Be7 {[%emt 0:01:07]} 12. h3 {[%emt 0:05:06]} Bh5 {[%emt 0:01:06]} 13. b4 {[%emt 0:02:08]} O-O {[%emt 0:02:52]} 14. b5 {[%emt 0:00:39]} axb5 {[%emt 0:01:55]} 15. Bxb5 {[%emt 0:01:42]} Nd7 {[%emt 0:05:23]} 16. Rxa8 {[%emt 0:02:28]} Rxa8 {[%emt 0:00:48]} 17. Re1 {[%emt 0:00:28]} h6 {[%emt 0:01:45]} 18. Ne5 {[%emt 0:05:43]} Ndxe5 {[%emt 0:02:07]} 19. Bxe5 {[%emt 0:01:01]} Nxe5 {[%emt 0:01:51]} 20. Rxe5 {[%emt 0:00:19]} Bg6 {[%emt 0:01:57]} 21. Nb3 {[%emt 0:03:36]} Bc2 {[%emt 0:02:20]} 22. Nd2 {[%emt 0:01:44]} Ra1+ {[%emt 0:00:44]} 23. Nf1 {[%emt 0:00:24]} Rb1 {[%emt 0:01:06]} 24. Re2 {[%emt 0:00:49]} Bg6 {[%emt 0:02:03]} 25. g3 {[%emt 0:03:04]} Bd6 {[%emt 0:03:39]} 26. Kg2 {[%emt 0:03:01]} Be4+ {[%emt 0:00:57]} 27. Kg1 {[%emt 0:01:46]} Bg6 {[%emt 0:02:22]} 28. Rd2 {[%emt 0:02:39]} Be7 {[%emt 0:02:25]} 29. Kg2 {[%emt 0:01:08]} Bg5 {[%emt 0:02:00]} 1/2-1/2